bitfinex-derivatives/quotes_SOLF0:USTF0_20240830
["timestamp","ask_amount","ask_price","bid_price","bid_amount"]
[1725002174420,0.04728569,139.39,139.37,3.5872]
[1725002175625,11.06728569,139.39,139.36,3.63938634]
[1725002176021,11.06728569,139.39,139.36,0.05188634]
[1725002176422,11.06728569,139.39,139.37,3.5873]
[1725002177024,0.04728569,139.39,139.37,3.5873]
[1725002177627,1.3417,139.46,139.36,0.05188634]
[1725002177628,859.89480111,139.62,139.38,15.8]
[1725002177819,11.02,139.5,139.43,11.02]
[1725002178024,3.63548317,139.49,139.44,3.66704928]
[1725002178219,3.63548317,139.49,139.47,3.5846]
[1725002178421,11.02,139.5,139.47,3.5846]
[1725002178620,11.0686755,139.5,139.47,3.63497232]
[1725002178922,14.6560921,139.5,139.47,3.63497232]
[1725002180133,3.6360921,139.5,139.47,0.05037232]
[1725002180324,27.52,139.49,139.47,0.05037232]
[1725002180531,31.1043,139.49,139.47,0.05037232]
[1725002181433,3.5845,139.48,139.47,0.05037232]
[1725002181632,4.78,139.48,139.39,6.0943]
[1725002181821,27.52,139.46,139.42,3.5859]
[1725002182027,31.1051,139.46,139.42,3.5859]
[1725002182534,0.04689585,139.45,139.43,0.05313709]
[1725002183232,3.5855,139.44,139.43,0.05313709]
[1725002183835,4.82689585,139.45,139.43,0.05313709]
[1725002184032,8.41229585,139.45,139.43,0.05313709]
[1725002185732,3.5855,139.44,139.43,0.05313709]
[1725002185924,31.1055,139.44,139.43,0.05313709]
[1725002186328,27.52,139.44,139.43,0.05313709]
[1725002188431,31.1055,139.44,139.43,0.05313709]
[1725002191438,3.5861,139.42,139.35,7.4378]
[1725002191636,31.15372301,139.41,139.36,3.66599727]
[1725002191835,4.78,139.45,139.35,7.4378]
[1725002192035,27.52,139.48,139.38,27.52]
[1725002192239,27.52,139.48,139.39,1.3913]
[1725002192438,0.05409426,139.45,139.42,3.63548814]
[1725002193729,0.05409426,139.45,139.43,3.5858]
[1725002195242,3.63939426,139.45,139.42,3.63558814]
[1725002196841,0.05409426,139.45,139.42,3.63558814]
[1725002197836,3.63939426,139.45,139.42,3.63558814]
[1725002198636,3.5855,139.44,139.42,0.04958814]
[1725002198830,0.05409426,139.45,139.42,0.04958814]
[1725002199439,3.63949426,139.45,139.42,3.63558814]
[1725002199738,0.05409426,139.45,139.42,0.04958814]
[1725002199940,27.52,139.44,139.42,0.04958814]
[1725002200137,0.05409426,139.45,139.31,11.02]
[1725002200138,11.02,139.43,139.31,11.02]
[1725002200341,11.02,139.38,139.31,12.4316]
[1725002200538,14.6071,139.38,139.34,3.588]
[1725002201234,0.04808987,139.37,139.35,0.05265816]
[1725002201434,11.02,139.36,139.35,0.05265816]
[1725002202032,27.58,139.36,139.35,0.05265816]
[1725002202231,31.1676,139.36,139.35,0.05265816]
[1725002202442,32.40808987,139.37,139.35,0.05265816]
[1725002203040,35.99548987,139.37,139.35,0.05265816]
[1725002204138,8.41548987,139.37,139.35,0.05265816]
[1725002204542,4.82808987,139.37,139.35,0.05265816]
[1725002207335,8.41548987,139.37,139.35,0.05265816]
[1725002207939,3.5876,139.36,139.35,0.05265816]
[1725002210349,8.41548987,139.37,139.35,0.05265816]
[1725002210948,4.82808987,139.37,139.35,0.05265816]
[1725002215948,0.04808987,139.37,139.35,0.05265816]
[1725002217148,0.04808987,139.37,139.36,7.10295591]
[1725002217362,7.1655,139.55,139.36,7.10295591]
[1725002217363,4.78,139.42,139.36,3.51535591]
[1725002217657,39.48519437,139.44,139.39,3.5867]
[1725002217860,34.70519437,139.44,139.37,3.64200631]
[1725002218156,4.78,139.45,139.41,3.5861]
[1725002218355,0.04973677,139.42,139.41,3.5861]
[1725002218552,0.05157146,139.43,139.4,0.0495089]
[1725002219053,0.05157146,139.43,139.4,3.6361089]
[1725002219660,0.05157146,139.43,139.4,0.0495089]
[1725002221356,0.05157146,139.43,139.4,3.6361089]
[1725002225259,0.05157146,139.43,139.41,3.5861]
[1725002226457,0.05157146,139.43,139.4,3.6360089]
[1725002228961,0.05157146,139.43,139.4,0.0495089]
[1725002229465,0.05157146,139.43,139.41,3.5861]
[1725002245990,0.05157146,139.43,139.42,3.5861]
[1725002251183,0.05157146,139.43,139.41,3.5862]
[1725002253381,0.05157146,139.43,139.42,3.5861]
[1725002255280,4.78,139.5,139.42,11.02]
[1725002255589,3.5846,139.48,139.44,11.02]
[1725002256184,0.05045673,139.47,139.45,0.04537492]
[1725002256690,11.02,139.46,139.45,0.04537492]
[1725002257293,14.605,139.46,139.45,0.04537492]
[1725002257696,19.385,139.46,139.45,0.04537492]
[1725002259398,14.605,139.46,139.45,0.04537492]
[1725002259794,19.385,139.46,139.45,0.04537492]
[1725002259995,14.605,139.46,139.45,0.04537492]
[1725002260202,19.385,139.46,139.45,0.04537492]
[1725002260694,3.5865,139.41,139.38,1.3123]
[1725002260895,11.02,139.4,139.36,1.3617]
[1725002261393,11.02,139.4,139.37,3.5873]
[1725002261693,3.5865,139.41,139.37,0.04617712]
[1725002261894,0.05106355,139.4,139.39,3.5868]
[1725002262100,0.05427531,139.41,139.39,3.5868]
[1725002266796,14.66067531,139.41,139.38,3.63562242]
[1725002267003,14.66067531,139.41,139.38,0.04862242]
[1725002267906,11.07427531,139.41,139.38,3.63552242]
[1725002268107,11.07427531,139.41,139.38,0.04862242]
[1725002268502,11.02,139.4,139.38,0.04862242]
[1725002269398,14.6066,139.4,139.38,0.04862242]
[1725002273510,11.02,139.4,139.38,0.04862242]
[1725002273812,11.02,139.4,139.38,3.63562242]
[1725002274404,14.6066,139.4,139.38,0.04862242]
[1725002276908,0.05427531,139.41,139.38,0.04862242]
[1725002277705,0.05427531,139.41,139.38,11.06862242]
[1725002277908,0.05427531,139.41,139.38,0.04862242]
[1725002278108,11.02,139.45,139.43,3.5858]
[1725002278409,3.5851,139.46,139.43,3.5858]
[1725002278603,14.6049,139.47,139.44,3.5855]
[1725002278804,1.3898,139.5,139.42,11.02]
[1725002279008,11.02,139.49,139.43,11.02]
[1725002279310,0.04806838,139.47,139.45,0.05161469]
[1725002280309,0.04806838,139.47,139.45,3.63691469]
[1725002282816,0.04806838,139.47,139.46,3.585]
[1725002292221,15.8,139.52,139.45,14.68780455]
[1725002292622,11.02,139.52,139.45,14.68780455]
[1725002293216,0.05293295,139.5,139.45,14.68780455]
[1725002293427,3.71429381,139.5,139.48,3.5844]
[1725002293721,0.05293295,139.5,139.45,11.07161469]
[1725002294315,3.72110531,139.5,139.45,11.07161469]
[1725002294720,7.30520531,139.5,139.47,3.5846]
[1725002295323,3.72110531,139.5,139.47,3.5846]
[1725002295620,3.72110531,139.5,139.48,3.5844]
[1725002297319,3.72110531,139.5,139.49,3.5843]
[1725002302629,3.72110531,139.5,139.49,14.6043]
[1725002306928,3.72110531,139.5,139.49,3.5843]
[1725002316944,3.72110531,139.5,139.48,0.04615693]
[1725002317147,11.02,139.49,139.33,3.28514895]
[1725002317450,3.5856,139.44,139.4,3.5865]
[1725002318046,11.02,139.45,139.39,3.61668577]
[1725002318244,0.04772208,139.43,139.41,3.63491592]
[1725002319247,3.63062537,139.43,139.41,0.04871592]
[1725002319446,11.02,139.42,139.41,0.04871592]
[1725002319635,3.63815473,139.43,139.41,0.04871592]
[1725002319837,0.04772208,139.43,139.41,0.04871592]
[1725002320040,0.04772208,139.43,139.41,3.63481592]
[1725002320448,3.64819389,139.43,139.41,3.63481592]
[1725002320748,3.64819389,139.43,139.41,0.04871592]
[1725002322146,3.64819389,139.43,139.41,3.63501592]
[1725002324347,0.04772208,139.43,139.42,3.5861]
[1725002325349,0.04772208,139.43,139.42,14.6061]
[1725002326847,3.5846,139.48,139.44,3.5854]
[1725002327850,0.05004134,139.47,139.45,0.05196122]
[1725002328148,3.63484134,139.47,139.45,0.05196122]
[1725002328351,14.65484134,139.47,139.45,0.05196122]
[1725002328652,11.07004134,139.47,139.45,0.05196122]
[1725002329448,3.585,139.46,139.45,0.05196122]
[1725002339562,3.63494134,139.47,139.45,0.05196122]
[1725002339861,14.65494134,139.47,139.45,0.05196122]
[1725002340766,14.605,139.46,139.45,0.05196122]
[1725002343158,0.05004134,139.47,139.45,0.05196122]
[1725002343353,11.07004134,139.47,139.45,0.05196122]
[1725002344360,3.585,139.46,139.45,0.05196122]
[1725002345558,14.65494134,139.47,139.45,0.05196122]
[1725002347262,3.585,139.46,139.45,0.05196122]
[1725002349358,14.605,139.46,139.45,0.05196122]
[1725002363978,11.02,139.46,139.39,3.5867]
[1725002364174,44.08,139.47,139.39,3.5867]
[1725002364175,11.02,139.42,139.39,3.5867]
[1725002364767,11.07400363,139.42,139.39,3.63790772]
[1725002365973,11.07400363,139.42,139.39,0.05120772]
[1725002366274,11.02,139.4,139.39,0.05120772]
[1725002366882,11.02,139.41,139.39,0.05120772]
[1725002368381,0.05400363,139.42,139.39,0.05120772]
[1725002369178,0.05400363,139.42,139.39,3.63780772]
[1725002369675,0.05400363,139.42,139.39,0.05120772]
[1725002370177,0.05400363,139.42,139.39,1.39890772]
[1725002370978,0.05400363,139.42,139.39,12.41890772]
[1725002372279,0.05400363,139.42,139.41,3.5863]
[1725002378690,3.5854,139.45,139.42,3.5859]
[1725002379286,8.42817236,139.5,139.43,11.02]
[1725002379485,11.02,139.48,139.44,1.3375]
[1725002379695,0.04778969,139.48,139.45,0.05252176]
[1725002380087,3.66143144,139.5,139.45,0.05252176]
[1725002380283,3.5835,139.52,139.46,15.78]
[1725002380484,11.02,139.53,139.46,11.02]
[1725002380796,11.02,139.53,139.46,15.78]
[1725002380995,14.6033,139.53,139.49,3.5841]
[1725002381891,14.6033,139.53,139.48,0.05479507]
[1725002381892,14.6033,139.53,139.5,3.584]
[1725002384298,11.02,139.53,139.5,3.584]
[1725002384491,3.583,139.54,139.5,3.584]
[1725002384492,14.603,139.54,139.5,3.584]
[1725002385290,14.603,139.54,139.48,11.07479507]
[1725002385291,14.603,139.54,139.51,3.5837]
[1725002385501,14.603,139.54,139.51,3.63187399]
[1725002386906,3.583,139.54,139.51,3.63187399]
[1725002387108,8.3426,139.56,139.51,0.04817399]
[1725002387410,14.6026,139.56,139.51,0.04817399]
[1725002387812,14.6026,139.56,139.53,3.5832]
[1725002388506,11.02,139.54,139.51,0.04817399]
[1725002389019,11.02,139.56,139.51,11.06817399]
[1725002389618,14.6025,139.56,139.52,3.5834]
[1725002390316,14.6022,139.57,139.53,3.5831]
[1725002390513,11.02,139.57,139.53,3.5831]
[1725002390723,11.02,139.55,139.51,0.04817399]
[1725002390914,11.02,139.52,139.51,0.04817399]
[1725002392116,14.6035,139.52,139.51,0.04817399]
[1725002392519,3.5835,139.52,139.51,0.04817399]
[1725002392823,14.6035,139.52,139.51,0.04817399]
[1725002400419,3.5835,139.52,139.51,0.04817399]
[1725002400613,15.78,139.55,139.51,0.04817399]
[1725002402223,11.02,139.54,139.51,0.04817399]
[1725002402423,3.5833,139.53,139.51,0.04817399]
[1725002404621,1.0,139.61,139.51,0.04817399]
[1725002404816,11.02,139.57,139.51,11.06817399]
[1725002405023,11.02,139.56,139.51,0.04817399]
[1725002405224,3.5827,139.55,139.52,3.63200013]
[1725002406018,3.5826,139.56,139.52,3.63200013]
[1725002407420,3.5828,139.55,139.52,3.63200013]
[1725002408219,4.76,139.57,139.53,3.583]
[1725002408423,15.78,139.57,139.52,0.04850013]
[1725002408927,3.5826,139.56,139.52,3.63180013]
[1725002409629,3.5821,139.58,139.54,11.02]
[1725002409926,3.5821,139.58,139.55,0.04933256]
[1725002410930,3.5824,139.57,139.55,0.04933256]
[1725002415723,11.02,139.56,139.36,40.5985287]
[1725002415921,11.02,139.52,139.44,1.4153]
[1725002416123,7.23406284,139.53,139.49,11.02]
[1725002416324,3.5834,139.53,139.49,11.02]
[1725002416525,15.78,139.56,139.5,11.02]
[1725002416722,0.04738649,139.54,139.52,0.05212952]
[1725002416927,0.04760184,139.54,139.52,0.0472445]
[1725002417920,3.63070184,139.54,139.52,0.0472445]
[1725002420525,0.04760184,139.54,139.52,0.0472445]
[1725002421521,3.63060184,139.54,139.52,0.0472445]
[1725002421932,11.06760184,139.54,139.52,0.0472445]
[1725002422332,3.5832,139.53,139.52,0.0472445]
[1725002423036,3.5841,139.5,139.45,11.02]
[1725002423432,11.02,139.49,139.43,4.76]
[1725002423634,11.02,139.49,139.42,4.76]
[1725002423834,11.02,139.47,139.42,3.586]
[1725002424333,0.05482228,139.46,139.43,0.04764533]
[1725002424534,0.04987339,139.46,139.43,3.64061303]
[1725002425233,0.04987339,139.46,139.44,14.6055]
[1725002425433,0.04987339,139.46,139.44,11.02]
[1725002425633,2.7293,139.55,139.45,11.02]
[1725002425826,2.7293,139.55,139.48,11.02]
[1725002425827,11.02,139.54,139.48,11.02]
[1725002426033,17.1446,139.55,139.49,11.02]
[1725002426233,6.1246,139.55,139.5,11.02]
[1725002426534,11.02,139.52,139.45,5.03509612]
[1725002426737,11.02,139.52,139.45,16.05509612]
[1725002426937,0.04593389,139.5,139.47,0.05378707]
[1725002427729,0.04593389,139.5,139.47,3.63838707]
[1725002428741,3.62993389,139.5,139.47,3.63838707]
[1725002429540,3.5843,139.49,139.47,0.05378707]
[1725002430138,3.63003389,139.5,139.47,0.05378707]
[1725002430441,0.04593389,139.5,139.47,0.05378707]
[1725002431445,3.63003389,139.5,139.47,0.05378707]
[1725002431846,11.06593389,139.5,139.47,0.05378707]
[1725002432041,3.60957774,139.49,139.47,0.05378707]
[1725002432243,11.06593389,139.5,139.47,0.05378707]
[1725002432541,3.5845,139.48,139.47,0.05378707]
[1725002435350,3.5843,139.49,139.47,0.05378707]
[1725002436644,3.5845,139.48,139.47,0.05378707]
[1725002438153,14.6045,139.48,139.47,0.05378707]
[1725002442554,3.5845,139.48,139.47,0.05378707]
[1725002442851,0.04593389,139.5,139.47,11.07378707]
[1725002443049,0.04593389,139.5,139.49,11.02]
[1725002443551,0.04593389,139.5,139.49,14.6043]
[1725002444556,0.04593389,139.5,139.49,3.5843]
[1725002450747,0.04593389,139.5,139.49,14.6043]
[1725002452863,1.3902,139.58,139.53,3.5832]
[1725002452864,6.1502,139.58,139.53,3.5832]
[1725002453062,6.1502,139.58,139.52,11.02]
[1725002453063,3.5797735,139.57,139.52,11.02]
[1725002453354,7.1620735,139.57,139.53,3.5831]
[1725002453555,17.1702,139.58,139.5,1.378]
[1725002453556,11.02,139.56,139.5,1.378]
[1725002453760,3.5827,139.55,139.52,0.04855948]
[1725002455553,3.5827,139.55,139.52,3.63195948]
[1725002456056,3.583,139.54,139.52,0.04855948]
[1725002459363,11.02,139.55,139.52,0.04855948]
[1725002459364,3.5832,139.53,139.52,0.04855948]
[1725002460362,14.6032,139.53,139.52,0.04855948]
[1725002460665,11.02,139.53,139.45,1.3395]
[1725002460966,11.02,139.51,139.46,3.585]
[1725002461163,7.14738543,139.5,139.46,3.585]
[1725002461760,0.04909831,139.49,139.47,0.05213556]
[1725002462458,14.6045,139.48,139.47,0.05213556]
[1725002462862,19.3645,139.48,139.47,0.05213556]
[1725002463159,19.3645,139.48,139.41,15.1357]
[1725002463160,3.585,139.47,139.42,3.5859]
[1725002463360,3.585,139.47,139.41,13.7964]
[1725002463361,11.02,139.46,139.41,13.7964]
[1725002463561,11.02,139.46,139.43,3.5858]
[1725002464170,11.07157906,139.46,139.43,3.63849865]
[1725002466171,14.65667906,139.46,139.43,3.63849865]
[1725002467068,14.65667906,139.46,139.43,0.05269865]
[1725002468267,11.02,139.45,139.28,13.14059581]
[1725002468460,11.02,139.43,139.36,11.02]
[1725002468661,11.02,139.43,139.37,3.65301197]
[1725002469274,0.05256252,139.41,139.39,0.04701006]
[1725002470568,11.07256252,139.41,139.39,0.04701006]
[1725002470771,14.65896252,139.41,139.39,0.04701006]
[1725002470970,3.63896252,139.41,139.39,0.04701006]
[1725002472670,3.5866,139.4,139.39,0.04701006]
[1725002473070,0.05256252,139.41,139.39,0.04701006]
[1725002473270,3.63906252,139.41,139.39,0.04701006]
[1725002473477,11.07256252,139.41,139.39,0.04701006]
[1725002473666,8.3466,139.4,139.39,0.04701006]
[1725002473872,3.5866,139.4,139.39,0.04701006]
[1725002475078,8.3466,139.4,139.39,0.04701006]
[1725002484479,4.76,139.4,139.39,0.04701006]
[1725002484879,0.05256252,139.41,139.39,0.04701006]
[1725002485283,11.07256252,139.41,139.39,0.04701006]
[1725002486279,3.5866,139.4,139.39,0.04701006]
[1725002486485,11.07256252,139.41,139.39,0.04701006]
[1725002487485,0.05256252,139.41,139.39,0.04701006]
[1725002488191,0.05256252,139.41,139.4,3.5866]
[1725002488982,0.05256252,139.41,139.39,3.63381006]
[1725002489178,0.05256252,139.41,139.39,0.04701006]
[1725002489385,0.05256252,139.41,139.39,11.06701006]
[1725002489781,0.05256252,139.41,139.39,14.68501264]
[1725002490088,0.05256252,139.41,139.4,3.5866]
[1725002498998,0.05256252,139.41,139.4,14.6066]
[1725002501394,4.90908543,139.5,139.44,3.5855]
[1725002501605,11.02,139.48,139.42,11.02]
[1725002501897,3.5854,139.45,139.42,3.586]
[1725002502496,3.63097195,139.45,139.42,3.63202764]
[1725002502697,14.65097195,139.45,139.42,3.63202764]
[1725002507606,0.04557195,139.45,139.42,0.04602764]
[1725002507798,11.02,139.43,139.37,3.5872]
[1725002508002,11.02,139.4,139.37,3.5872]
[1725002508507,11.02,139.4,139.36,7.20195783]
[1725002508811,0.04845958,139.39,139.37,0.04612207]
[1725002510201,0.04845958,139.39,139.38,11.02]
[1725002510398,3.63655929,139.44,139.38,12.4206]
[1725002510608,3.63655929,139.44,139.4,11.02]
[1725002510812,3.5857,139.44,139.4,14.6064]
[1725002511111,7.14693107,139.44,139.4,14.6064]
[1725002511612,0.04970054,139.43,139.41,0.05444273]
[1725002512215,0.04970054,139.43,139.41,3.64074273]
[1725002513006,3.63560054,139.43,139.41,0.05444273]
[1725002513208,0.04970054,139.43,139.41,0.05444273]
[1725002513401,11.06970054,139.43,139.41,0.05444273]
[1725002513600,3.5861,139.42,139.41,0.05444273]
[1725002514917,3.63570054,139.43,139.41,0.05444273]
[1725002519511,0.04970054,139.43,139.41,3.64074273]
[1725002519817,0.04970054,139.43,139.41,14.66074273]
[1725002520620,0.04970054,139.43,139.42,3.5861]
[1725002520816,0.04970054,139.43,139.42,14.6061]
[1725002521713,0.04970054,139.43,139.42,3.5861]
[1725002541329,7.11264073,139.48,139.45,3.5852]
[1725002542330,7.16060077,139.48,139.45,3.63582808]
[1725002544743,0.04796004,139.48,139.45,0.05062808]
[1725002545038,0.04796004,139.48,139.46,3.50699175]
[1725002545232,0.04796004,139.48,139.47,3.5848]
[1725002545736,0.04796004,139.48,139.45,0.05062808]
[1725002546132,0.04796004,139.48,139.45,3.63582808]
[1725002546343,11.06796004,139.48,139.45,3.63582808]
[1725002546643,3.5849,139.47,139.45,0.05062808]
[1725002547543,11.02,139.46,139.45,0.05062808]
[1725002548446,14.605,139.46,139.45,0.05062808]
[1725002549048,14.605,139.46,139.41,3.5863]
[1725002549049,3.586,139.43,139.38,2.6861]
[1725002549344,11.02,139.42,139.39,3.65363244]
[1725002549547,11.02,139.42,139.39,7.24033244]
[1725002549944,11.02,139.42,139.39,7.29354523]
[1725002550250,11.07357575,139.42,139.39,3.63991279]
[1725002550457,11.07357575,139.42,139.39,0.05321279]
[1725002550745,11.02,139.4,139.32,14.52950161]
[1725002550948,11.02,139.38,139.32,11.02]
[1725002551151,11.02,139.38,139.33,3.54858737]
[1725002551343,11.02,139.38,139.35,3.5879]
[1725002551544,14.6071,139.38,139.33,3.54858737]
[1725002551746,0.05301604,139.37,139.34,0.05360132]
[1725002552454,0.05301604,139.37,139.34,11.07360132]
[1725002552657,0.05301604,139.37,139.35,3.5877]
[1725002554652,0.05301604,139.37,139.34,0.05360132]
[1725002555555,3.64041604,139.37,139.34,0.05360132]
[1725002556765,0.05301604,139.37,139.34,3.64170132]
[1725002557049,0.05301604,139.37,139.34,14.66170132]
[1725002558850,3.64041604,139.37,139.34,3.64170132]
[1725002559458,3.5877,139.36,139.34,0.05360132]
[1725002559960,14.66041604,139.37,139.34,0.05360132]
[1725002560142,3.64041604,139.37,139.34,0.05360132]
[1725002560752,0.05301604,139.37,139.34,3.64160132]
[1725002561659,3.64051604,139.37,139.34,0.05360132]
[1725002565666,3.5876,139.36,139.34,0.05360132]
[1725002566562,3.5879,139.35,139.34,0.05360132]
[1725002566868,11.07301604,139.37,139.34,0.05360132]
[1725002567469,3.5877,139.36,139.34,0.05360132]
[1725002569659,14.66041604,139.37,139.34,0.05360132]
[1725002569867,11.07301604,139.37,139.34,0.05360132]
[1725002570578,11.02,139.36,139.34,0.05360132]
[1725002571470,0.05301604,139.37,139.34,3.64170132]
[1725002575070,0.05301604,139.37,139.35,3.5877]
[1725002575467,0.05301604,139.37,139.34,0.05360132]
[1725002576177,0.05301604,139.37,139.36,3.5876]
[1725002589795,0.05301604,139.37,139.35,3.5877]
[1725002591001,14.53556894,139.36,139.34,0.05360132]
[1725002592281,14.53556894,139.36,139.34,3.64170132]
[1725002593192,18.12326894,139.36,139.34,0.05360132]
[1725002593390,14.53556894,139.36,139.34,0.05360132]
[1725002594392,19.27556894,139.36,139.34,0.05360132]
[1725002594700,3.5879,139.35,139.34,0.05360132]
[1725002595492,14.6079,139.35,139.34,0.05360132]
[1725002595987,22.86326894,139.36,139.34,0.05360132]
[1725002596193,19.27556894,139.36,139.34,0.05360132]
[1725002596392,3.5879,139.35,139.34,0.05360132]
[1725002596898,22.86326894,139.36,139.34,0.05360132]
[1725002598998,14.6079,139.35,139.34,0.05360132]
[1725002605989,3.5887,139.32,139.28,6.33196176]
[1725002606298,11.02,139.32,139.28,6.33196176]
[1725002607006,11.02,139.32,139.29,3.5892]
[1725002607204,0.05308209,139.31,139.29,3.64342942]
[1725002608201,11.07308209,139.31,139.29,0.05422942]
[1725002608409,11.02,139.3,139.29,0.05422942]
[1725002608799,15.76,139.3,139.29,0.05422942]
[1725002608999,11.02,139.3,139.29,0.05422942]
[1725002609805,15.76,139.3,139.29,0.05422942]
[1725002610098,14.6091,139.3,139.29,0.05422942]
[1725002610300,19.3491,139.3,139.29,0.05422942]
[1725002612304,14.6091,139.3,139.29,0.05422942]
[1725002612504,19.3491,139.3,139.29,0.05422942]
[1725002612809,14.6091,139.3,139.29,0.05422942]
[1725002613296,19.3491,139.3,139.29,0.05422942]
[1725002613906,14.6091,139.3,139.29,0.05422942]
[1725002614504,19.3491,139.3,139.29,0.05422942]
[1725002614703,14.6091,139.3,139.29,0.05422942]
[1725002615099,0.05308209,139.31,139.29,0.05422942]
[1725002616113,0.05308209,139.31,139.3,3.5891]
[1725002627020,15.76,139.35,139.32,3.5885]
[1725002627412,11.02,139.35,139.29,11.02]
[1725002627820,0.05291596,139.33,139.31,0.04700978]
[1725002628622,0.05291596,139.33,139.32,3.5886]
[1725002645536,4.74,139.37,139.35,3.5879]
[1725002645745,6.2227048,139.43,139.31,11.02]
[1725002645746,11.02,139.38,139.31,11.02]
[1725002646037,14.6072,139.38,139.31,11.02]
[1725002646431,0.04603353,139.36,139.33,0.0535045]
[1725002647034,0.04603353,139.36,139.34,3.5881]
[1725002648547,0.04603353,139.36,139.35,3.5879]
[1725002652137,0.04603353,139.36,139.34,3.588]
[1725002652531,11.06603353,139.36,139.33,0.0535045]
[1725002652733,11.02,139.34,139.33,0.0535045]
[1725002654330,14.6081,139.34,139.33,0.0535045]
[1725002654533,11.02,139.34,139.27,3.9818]
[1725002654729,11.02,139.28,139.2,63.84543204]
[1725002654935,11.02,139.28,139.22,11.02]
[1725002655139,11.02,139.28,139.23,11.02]
[1725002655531,11.02,139.28,139.23,15.76]
[1725002655734,0.05362133,139.27,139.24,0.05509023]
[1725002657438,0.05362133,139.27,139.26,3.5899]
[1725002657636,0.05362133,139.27,139.26,7.19568648]
[1725002657832,0.05362133,139.27,139.26,3.5899]
[1725002658332,0.05362133,139.27,139.26,7.25635128]
[1725002658536,0.05362133,139.27,139.26,3.5899]
[1725002659132,0.05362133,139.27,139.26,7.14040613]
[1725002662643,0.05362133,139.27,139.26,18.16040613]
[1725002662834,15.76,139.33,139.26,18.16040613]
[1725002662835,11.02,139.33,139.26,14.57050613]
[1725002663241,11.02,139.33,139.27,2.6915]
[1725002663847,0.04960593,139.31,139.29,0.05348571]
[1725002664146,11.06960593,139.31,139.29,3.64268571]
[1725002665045,11.06960593,139.31,139.29,0.05348571]
[1725002665248,11.02,139.3,139.29,0.05348571]
[1725002671454,11.06960593,139.31,139.29,3.64288571]
[1725002685865,0.04960593,139.31,139.3,3.5891]
[1725002691177,11.06960593,139.31,139.3,3.5891]
[1725002698984,0.04960593,139.31,139.3,3.5891]
[1725002702185,11.06960593,139.31,139.29,3.64278571]
[1725002702487,11.02,139.3,139.29,3.64278571]
[1725002703583,11.02,139.3,139.29,0.05348571]
[1725002706582,11.02,139.3,139.24,1.4024]
[1725002706777,11.02,139.27,139.24,1.4024]
[1725002707579,11.07034535,139.27,139.24,1.44905286]
[1725002708283,11.07034535,139.27,139.25,3.5903]
[1725002712995,0.05034535,139.27,139.25,3.5903]
[1725002715988,0.05034535,139.27,139.26,3.5902]
[1725002721502,4.72,139.32,139.26,3.5227599]
[1725002721690,3.63061917,139.36,139.29,11.02]
[1725002721891,83.8595738,139.41,139.32,11.02]
[1725002722099,11.02,139.39,139.32,11.02]
[1725002722297,82.5460738,139.41,139.33,12.3265]
[1725002722501,0.04711004,139.38,139.36,0.04959384]
[1725002722893,1.4144,139.45,139.36,0.04959384]
[1725002722894,1.4144,139.45,139.37,3.5873]
[1725002723098,6.1377,139.47,139.37,11.02]
[1725002723409,11.02,139.45,139.37,15.74]
[1725002723800,57.43325954,139.47,139.37,15.74]
[1725002724002,0.0528704,139.43,139.41,0.0508308]
[1725002724698,11.0728704,139.43,139.41,0.0508308]
[1725002725407,11.0728704,139.43,139.41,3.5849054]
[1725002725611,0.0528704,139.43,139.41,7.1712054]
[1725002728708,0.0528704,139.43,139.42,3.5861]
[1725002729009,0.0528704,139.43,139.42,7.21982301]
[1725002731707,0.0528704,139.43,139.42,3.5861]
[1725002731907,0.0528704,139.43,139.42,7.24824859]
[1725002732209,0.0528704,139.43,139.42,3.5861]
[1725002732406,0.0528704,139.43,139.41,7.16471295]
[1725002734011,0.0528704,139.43,139.42,3.5861]
[1725002734713,0.0528704,139.43,139.42,14.6061]
[1725002735823,11.02,139.47,139.43,3.5856]
[1725002736123,11.02,139.47,139.43,7.15938459]
[1725002736325,11.02,139.47,139.43,3.57378459]
[1725002736627,11.02,139.47,139.42,11.02]
[1725002737020,11.02,139.47,139.42,14.6801893]